fUST/lending_fUST_20240813
["ID","MTS","AMOUNT","RATE_DAILY","PERIOD"]
[334771167,1723542639255,-153.0,0.00013685,2]
[334771168,1723542639266,-153.0,0.00013685,2]
[334771169,1723542639275,-153.0,0.00013685,2]
[334771170,1723542639284,-153.0,0.00013685,2]
[334771171,1723542639295,-153.0,0.00013685,2]
[334771172,1723542639307,-153.0,0.00013685,2]
[334771173,1723542639317,-153.0,0.00013685,2]
[334771174,1723542639327,-153.0,0.00013685,2]
[334771175,1723542639337,-153.0,0.00013685,2]
[334771176,1723542639349,-243.0,0.00013685,2]
[334771177,1723542639359,-243.0,0.00013685,2]
[334771178,1723542639370,-243.0,0.00013685,2]
[334771179,1723542639381,-243.0,0.00013685,2]
[334771180,1723542639393,-243.0,0.00013685,2]
[334771181,1723542639404,-243.0,0.00013685,2]
[334771182,1723542639414,-243.0,0.00013685,2]
[334771183,1723542639423,-243.0,0.00013685,2]
[334771184,1723542639433,-243.0,0.00013685,2]
[334771185,1723542639443,-243.0,0.00013685,2]
[334771186,1723542639452,-243.0,0.00013685,2]
[334771187,1723542639461,-243.0,0.00013685,2]
[334771188,1723542639470,-243.0,0.00013685,2]
[334771189,1723542639480,-243.0,0.00013685,2]
[334771190,1723542639489,-153.0,0.00013685,2]
[334771191,1723542639498,-153.0,0.00013685,2]
[334771192,1723542639510,-153.0,0.00013685,2]
[334771193,1723542639521,-153.0,0.00013685,2]
[334771194,1723542639532,-153.0,0.00013685,2]
[334771195,1723542639543,-153.0,0.00013685,2]
[334771196,1723542639560,-94.90005011,0.00013685,2]
[334771199,1723542640031,-58.09994989,0.00013685,2]
[334771201,1723542640043,-153.0,0.00013685,2]
[334771203,1723542640053,-153.0,0.00013685,2]
[334771205,1723542640062,-153.0,0.00013685,2]
[334771207,1723542640071,-153.0,0.00013685,2]
[334771209,1723542640081,-243.0,0.00013685,2]
[334771211,1723542640090,-165.52293979,0.00013685,2]
[334771213,1723542640104,-77.47706021,0.00013685,2]
[334771215,1723542640114,-243.0,0.00013685,2]
[334771217,1723542640124,-243.0,0.00013685,2]
[334771219,1723542640134,-243.0,0.00013685,2]
[334771221,1723542640145,-243.0,0.00013685,2]
[334771223,1723542640155,-243.0,0.00013685,2]
[334771226,1723542640165,-243.0,0.00013685,2]
[334771228,1723542640176,-243.0,0.00013685,2]
[334771229,1723542640185,-243.0,0.00013685,2]
[334771231,1723542640194,-243.0,0.00013685,2]
[334771234,1723542640205,-243.0,0.00013685,2]
[334771236,1723542640215,-243.0,0.00013685,2]
[334771238,1723542640225,-243.0,0.00013685,2]
[334771240,1723542640235,-153.0,0.00013685,2]
[334771242,1723542640247,-153.0,0.00013685,2]
[334771244,1723542640259,-153.0,0.00013685,2]
[334771246,1723542640269,-153.0,0.00013685,2]
[334771248,1723542640278,-153.0,0.00013685,2]
[334771251,1723542640288,-153.0,0.00013685,2]
[334771252,1723542640299,-153.0,0.00013685,2]
[334771255,1723542640308,-153.0,0.00013685,2]
[334771257,1723542640318,-153.0,0.00013685,2]
[334771259,1723542640328,-153.0,0.00013685,2]
[334771261,1723542640338,-153.0,0.00013685,2]
[334771263,1723542640348,-243.0,0.00013685,2]
[334771265,1723542640358,-243.0,0.00013685,2]
[334771267,1723542640368,-243.0,0.00013685,2]
[334771269,1723542640378,-243.0,0.00013685,2]
[334771271,1723542640388,-243.0,0.00013685,2]
[334771273,1723542640399,-243.0,0.00013685,2]
[334771275,1723542640410,-243.0,0.00013685,2]
[334771278,1723542640422,-243.0,0.00013685,2]
[334771280,1723542640433,-243.0,0.00013685,2]
[334771282,1723542640442,-243.0,0.00013685,2]
[334771284,1723542640453,-243.0,0.00013685,2]
[334771286,1723542640464,-243.0,0.00013685,2]
[334771288,1723542640475,-243.0,0.00013685,2]
[334771291,1723542640487,-243.0,0.00013685,2]
[334771293,1723542640497,-153.0,0.00013685,2]
[334771295,1723542640508,-153.0,0.00013685,2]
[334771297,1723542640519,-153.0,0.00013685,2]
[334771299,1723542640530,-153.0,0.00013685,2]
[334771301,1723542640541,-153.0,0.00013685,2]
[334771303,1723542640553,-153.0,0.00013685,2]
[334771306,1723542640564,-153.0,0.00013685,2]
[334771308,1723542640574,-153.0,0.00013685,2]
[334771310,1723542640585,-153.0,0.00013685,2]
[334771312,1723542640596,-153.0,0.00013685,2]
[334771314,1723542640606,-153.0,0.00013685,2]
[334771316,1723542640618,-243.0,0.00013685,2]
[334771318,1723542640630,-243.0,0.00013685,2]
[334771320,1723542640641,-243.0,0.00013685,2]
[334771322,1723542640653,-243.0,0.00013685,2]
[334771325,1723542640664,-243.0,0.00013685,2]
[334771327,1723542640675,-243.0,0.00013685,2]
[334771329,1723542640686,-243.0,0.00013685,2]
[334771331,1723542640698,-243.0,0.00013685,2]
[334771334,1723542640710,-243.0,0.00013685,2]
[334771336,1723542640725,-243.0,0.00013685,2]
[334771338,1723542640735,-243.0,0.00013685,2]
[334771341,1723542640748,-243.0,0.00013685,2]
[334771343,1723542640759,-243.0,0.00013685,2]
[334771345,1723542640770,-243.0,0.00013685,2]
[334771347,1723542640781,-153.0,0.00013685,2]
[334771349,1723542640791,-153.0,0.00013685,2]
[334771351,1723542640802,-153.0,0.00013685,2]
[334771353,1723542640812,-153.0,0.00013685,2]
[334771355,1723542640822,-153.0,0.00013685,2]
[334771357,1723542640833,-153.0,0.00013685,2]
[334771360,1723542640845,-153.0,0.00013685,2]
[334771362,1723542640856,-153.0,0.00013685,2]
[334771364,1723542640868,-153.0,0.00013685,2]
[334771366,1723542640879,-153.0,0.00013685,2]
[334771368,1723542640891,-153.0,0.00013685,2]
[334771370,1723542640901,-243.0,0.00013685,2]
[334771372,1723542640911,-243.0,0.00013685,2]
[334771374,1723542640922,-243.0,0.00013685,2]
[334771376,1723542640933,-243.0,0.00013685,2]
[334771378,1723542640944,-243.0,0.00013685,2]
[334771381,1723542640957,-243.0,0.00013685,2]
[334771383,1723542640968,-243.0,0.00013685,2]
[334771385,1723542640979,-243.0,0.00013685,2]
[334771387,1723542640990,-243.0,0.00013685,2]
[334771389,1723542641000,-243.0,0.00013685,2]
[334771391,1723542641011,-243.0,0.00013685,2]
[334771394,1723542641023,-243.0,0.00013685,2]
[334771396,1723542641033,-243.0,0.00013685,2]
[334771398,1723542641044,-243.0,0.00013685,2]
[334771400,1723542641054,-153.0,0.00013685,2]
[334771421,1723542641064,-153.0,0.00013685,2]
[334771423,1723542641260,-153.0,0.00013685,2]
[334771425,1723542641271,-153.0,0.00013685,2]
[334771428,1723542641281,-153.0,0.00013685,2]
[334771430,1723542641291,-153.0,0.00013685,2]
[334771432,1723542641304,-243.0,0.00013685,2]
[334771434,1723542641314,-243.0,0.00013685,2]
[334771436,1723542641324,-243.0,0.00013685,2]
[334771438,1723542641334,-243.0,0.00013685,2]
[334771440,1723542641344,-243.0,0.00013685,2]
[334771442,1723542641354,-243.0,0.00013685,2]
[334771444,1723542641363,-243.0,0.00013685,2]
[334771446,1723542641373,-243.0,0.00013685,2]
[334771448,1723542641383,-243.0,0.00013685,2]
[334771450,1723542641393,-243.0,0.00013685,2]
[334771452,1723542641402,-6738.14777706,0.00013688,2]
[334771454,1723542641412,-424469.13618,0.00013688,2]
[334771455,1723542641422,-500.0,0.00013698,2]
[334771456,1723542641432,-500.0,0.00013698,2]
[334771457,1723542641442,-500.0,0.00013698,2]
[334771458,1723542641454,-500.0,0.00013698,2]
[334771459,1723542641463,-500.0,0.00013698,2]
[334771460,1723542641473,-500.0,0.00013698,2]
[334771461,1723542641482,-500.0,0.00013698,2]
[334771462,1723542641492,-685.99,0.00013698,2]
[334771463,1723542641501,-501.14263449,0.00013698,2]
[334771464,1723542641510,-500.0,0.00013698,2]
[334771465,1723542641520,-500.0,0.00013698,2]
[334771466,1723542641530,-500.0,0.00013698,2]
[334771467,1723542641539,-500.0,0.00013698,2]
[334771468,1723542641552,-302.94018834,0.00013698,2]
[334771469,1723542641562,-500.0,0.00013698,2]
[334771470,1723542641572,-500.0,0.00013698,2]
[334771472,1723542641582,-500.0,0.00013698,2]
[334771474,1723542641594,-500.0,0.00013698,2]
[334771476,1723542641605,-500.0,0.00013698,2]
[334771478,1723542641615,-500.0,0.00013698,2]
[334771480,1723542641627,-500.0,0.00013698,2]
[334771482,1723542641637,-500.0,0.00013698,2]
[334771484,1723542641648,-556.09,0.00013698,2]
[334771486,1723542641659,-500.0,0.00013698,2]
[334771489,1723542641670,-500.0,0.00013698,2]
[334771491,1723542641683,-500.0,0.00013698,2]
[334771493,1723542641692,-738.81,0.00013698,2]
[334771495,1723542641702,-500.0,0.00013698,2]
[334771497,1723542641712,-500.0,0.00013698,2]
[334771499,1723542641721,-500.0,0.00013698,2]
[334771501,1723542641730,-500.0,0.00013698,2]
[334771503,1723542641739,-508.89044468,0.00013698,2]
[334771505,1723542641750,-500.0,0.00013698,2]
[334771507,1723542641759,-500.0,0.00013698,2]
[334771509,1723542641768,-500.0,0.00013698,2]
[334771511,1723542641778,-506.37693255,0.00013698,2]
[334771513,1723542641787,-500.0,0.00013698,2]
[334771515,1723542641799,-500.0,0.00013698,2]
[334771517,1723542641809,-269.87839926,0.00013698,2]
[334771518,1723542641818,-500.0,0.00013698,2]
[334771519,1723542641828,-500.0,0.00013698,2]
[334771520,1723542641837,-500.0,0.00013698,2]
[334771521,1723542641846,-500.0,0.00013698,2]
[334771522,1723542641856,-500.0,0.00013698,2]
[334771523,1723542641865,-555.29638205,0.00013698,2]
[334771524,1723542641875,-500.0,0.00013698,2]
[334771525,1723542641888,-500.0,0.00013698,2]
[334771526,1723542641897,-500.0,0.00013698,2]
[334771527,1723542641907,-500.0,0.00013698,2]
[334771528,1723542641919,-550.0,0.00013698,2]
[334771529,1723542641929,-500.0,0.00013698,2]
[334771530,1723542641938,-500.0,0.00013698,2]
[334771531,1723542641948,-500.0,0.00013698,2]
[334771532,1723542641959,-500.0,0.00013698,2]
[334771533,1723542641968,-500.0,0.00013698,2]
[334771534,1723542641978,-500.0,0.00013698,2]
[334771535,1723542641988,-501.44520048,0.00013698,2]
[334771536,1723542641997,-500.0,0.00013698,2]
[334771537,1723542642007,-504.83601221,0.00013698,2]
[334771538,1723542642017,-500.0,0.00013698,2]
[334771539,1723542642026,-500.0,0.00013698,2]
[334771540,1723542642047,-500.0,0.00013698,2]
[334771541,1723542642058,-778.0,0.00013698,2]
[334771542,1723542642068,-792.6,0.00013698,2]
[334771543,1723542642078,-504.60567424,0.00013698,2]
[334771544,1723542642088,-151.0,0.00013698,2]
[334771545,1723542642099,-157.2737572,0.00013698,2]
[334771546,1723542642110,-384.5,0.00013698,2]
[334771547,1723542642122,-500.0,0.00013698,2]
[334771548,1723542642134,-300.0,0.00013698,2]
[334771549,1723542642144,-500.0,0.00013698,2]
[334771550,1723542642156,-600.0,0.00013698,2]
[334771551,1723542642167,-780.89,0.00013698,2]
[334771552,1723542642179,-500.0,0.00013698,2]
[334771553,1723542642191,-187.50693727,0.00013698,2]
[334771554,1723542642203,-500.0,0.00013698,2]
[334771555,1723542642213,-500.0,0.00013698,2]
[334771556,1723542642225,-500.0,0.00013698,2]
[334771557,1723542642235,-506.45694896,0.00013698,2]
[334771558,1723542642247,-738.3,0.00013698,2]
[334771559,1723542642257,-538.29,0.00013698,2]
[334771560,1723542642266,-501.81780332,0.00013698,2]
[334771561,1723542642287,-500.0,0.00013698,2]
[334771562,1723542642299,-500.0,0.00013698,2]
[334771563,1723542642308,-500.0,0.00013698,2]
[334771564,1723542642317,-500.0,0.00013698,2]
[334771565,1723542642327,-503.91010508,0.00013698,2]
[334771566,1723542642337,-518.39715278,0.00013698,2]
[334771567,1723542642346,-500.0,0.00013698,2]
[334771568,1723542642356,-500.0,0.00013698,2]
[334771569,1723542642366,-500.0,0.00013698,2]
[334771570,1723542642376,-504.93496476,0.00013698,2]
[334771571,1723542642386,-221.25196166,0.00013698,2]
[334771572,1723542642395,-500.0,0.00013698,2]
[334771573,1723542642405,-511.14859023,0.00013698,2]
[334771574,1723542642415,-500.0,0.00013698,2]
[334771575,1723542642425,-170.21343717,0.00013698,2]
[334771576,1723542642435,-500.0,0.00013698,2]
[334771577,1723542642444,-500.0,0.00013698,2]
[334771578,1723542642455,-500.0,0.00013698,2]
[334771579,1723542642465,-500.0,0.00013698,2]
[334771580,1723542642474,-500.0,0.00013698,2]
[334771581,1723542642484,-500.0,0.00013698,2]
[334771582,1723542642494,-504.35557041,0.00013698,2]
[334771583,1723542642503,-518.15476045,0.00013698,2]
[334771584,1723542642515,-500.0,0.00013698,2]
[334771585,1723542642524,-504.932046,0.00013698,2]
[334771586,1723542642534,-500.0,0.00013698,2]
[334771587,1723542642543,-151.0,0.00013698,2]
[334771588,1723542642554,-151.0,0.00013698,2]
[334771589,1723542642564,-500.0,0.00013698,2]
[334771590,1723542642574,-151.0,0.00013698,2]
[334771591,1723542642586,-563.72,0.00013698,2]
[334771592,1723542642598,-1092.88,0.00013698,2]
[334771593,1723542642609,-186.81211809,0.00013698,2]
[334771594,1723542642621,-500.0,0.00013698,2]
[334771595,1723542642631,-500.0,0.00013698,2]
[334771596,1723542642641,-500.0,0.00013698,2]
[334771597,1723542642651,-500.0,0.00013698,2]
[334771598,1723542642663,-1031.14,0.00013698,2]
[334771600,1723542642673,-221.25485608,0.00013698,2]
[334771602,1723542642683,-500.0,0.00013698,2]
[334771603,1723542642694,-500.0,0.00013698,2]
[334771605,1723542642704,-504.46577119,0.00013698,2]
[334771606,1723542642713,-505.99767687,0.00013698,2]
[334771607,1723542642724,-500.0,0.00013698,2]
[334771608,1723542642734,-500.0,0.00013698,2]
[334771609,1723542642744,-151.555561,0.00013698,2]
[334771610,1723542642754,-500.0,0.00013698,2]
[334771611,1723542642764,-504.28231088,0.00013698,2]
[334771612,1723542642774,-500.0,0.00013698,2]
[334771613,1723542642785,-500.0,0.00013698,2]
[334771614,1723542642795,-1676.68,0.00013698,2]
[334771615,1723542642805,-501.79291286,0.00013698,2]
[334771616,1723542642814,-732.67,0.00013698,2]
[334771617,1723542642824,-500.0,0.00013698,2]
[334771618,1723542642834,-492.82389326,0.00013698,2]
[334771619,1723542642844,-500.0,0.00013698,2]
[334771620,1723542642853,-501.68738157,0.00013698,2]
[334771621,1723542642863,-662.01,0.00013698,2]
[334771622,1723542642873,-538.82624112,0.00013698,2]
[334771623,1723542642886,-500.0,0.00013698,2]
[334771625,1723542642896,-738.9,0.00013698,2]
[334771626,1723542642905,-500.0,0.00013698,2]
[334771628,1723542642915,-500.0,0.00013698,2]
[334771631,1723542642926,-507.12995694,0.00013698,2]
[334771632,1723542642936,-500.0,0.00013698,2]
[334771635,1723542642945,-500.0,0.00013698,2]
[334771639,1723542642955,-500.0,0.00013698,2]
[334771642,1723542642965,-500.0,0.00013698,2]
[334771645,1723542642974,-500.0,0.00013698,2]
[334771647,1723542642984,-500.0,0.00013698,2]
[334771649,1723542642993,-500.0,0.00013698,2]
[334771651,1723542643002,-500.0,0.00013698,2]
[334771653,1723542643012,-500.0,0.00013698,2]
[334771655,1723542643022,-760.85,0.00013698,2]
[334771659,1723542643032,-1230.32,0.00013698,2]
[334771661,1723542643042,-500.0,0.00013698,2]
[334771663,1723542643053,-501.37628776,0.00013698,2]
[334771665,1723542643063,-500.0,0.00013698,2]
[334771666,1723542643073,-151.0,0.00013698,2]
[334771668,1723542643082,-500.0,0.00013698,2]
[334771670,1723542643092,-567.87,0.00013698,2]
[334771672,1723542643102,-500.0,0.00013698,2]
[334771674,1723542643112,-500.0,0.00013698,2]
[334771676,1723542643123,-500.0,0.00013698,2]
[334771677,1723542643133,-500.0,0.00013698,2]
[334771679,1723542643143,-500.41746684,0.00013698,2]
[334771681,1723542643152,-553.9254321,0.00013698,2]
[334771683,1723542643162,-500.0,0.00013698,2]
[334771685,1723542643171,-405.5421487,0.00013698,2]
[334771687,1723542643181,-500.0,0.00013698,2]
[334771688,1723542643191,-500.0,0.00013698,2]
[334771690,1723542643201,-853.24,0.00013698,2]
[334771692,1723542643211,-500.0,0.00013698,2]
[334771694,1723542643221,-200.0,0.00013698,2]
[334771697,1723542643231,-388.19965429,0.00013698,2]
[334771699,1723542643242,-500.0,0.00013698,2]
[334771701,1723542643254,-500.0,0.00013698,2]
[334771703,1723542643264,-512.12221757,0.00013698,2]
[334771705,1723542643275,-848.57,0.00013698,2]
[334771707,1723542643285,-500.0,0.00013698,2]
[334771710,1723542643300,-500.0,0.00013698,2]
[334771712,1723542643311,-500.0,0.00013698,2]
[334771714,1723542643321,-500.0,0.00013698,2]
[334771716,1723542643332,-500.0,0.00013698,2]
[334771718,1723542643343,-504.90662939,0.00013698,2]
[334771720,1723542643353,-918.79,0.00013698,2]
[334771723,1723542643365,-472.66810665,0.00013698,2]
[334771726,1723542643374,-472.37504085,0.00013698,2]
[334771729,1723542643385,-500.0,0.00013698,2]
[334771731,1723542643396,-503.23853271,0.00013698,2]
[334771733,1723542643406,-500.0,0.00013698,2]
[334771736,1723542643418,-502.4300017,0.00013698,2]
[334771738,1723542643429,-500.0,0.00013698,2]
[334771740,1723542643439,-504.18759248,0.00013698,2]
[334771742,1723542643451,-510.71182565,0.00013698,2]
[334771744,1723542643462,-235.05888984,0.00013698,2]
[334771746,1723542643473,-1789.59,0.00013698,2]
[334771749,1723542643485,-500.0,0.00013698,2]
[334771751,1723542643497,-500.0,0.00013698,2]
[334771753,1723542643508,-527.41057258,0.00013698,2]
[334771755,1723542643519,-500.0,0.00013698,2]
[334771758,1723542643531,-442.59706221,0.00013698,2]
[334771760,1723542643542,-503.93061823,0.00013698,2]
[334771762,1723542643560,-609.17613278,0.00013698,2]
[334771764,1723542643571,-500.0,0.00013698,2]
[334771766,1723542643580,-500.0,0.00013698,2]
[334771769,1723542643590,-244.40232907,0.00013698,2]
[334771772,1723542643601,-500.0,0.00013698,2]
[334771774,1723542643611,-500.0,0.00013698,2]
[334771777,1723542643623,-571.7495772,0.00013698,2]
[334771779,1723542643632,-510.22858019,0.00013698,2]
[334771781,1723542643642,-500.0,0.00013698,2]
[334771783,1723542643652,-500.0,0.00013698,2]
[334771785,1723542643662,-500.0,0.00013698,2]
[334771787,1723542643672,-670.17,0.00013698,2]
[334771789,1723542643683,-502.53330438,0.00013698,2]
[334771791,1723542643693,-500.0,0.00013698,2]
[334771793,1723542643703,-500.0,0.00013698,2]
[334771795,1723542643714,-501.22635763,0.00013698,2]
[334771797,1723542643724,-500.0,0.00013698,2]
[334771799,1723542643734,-503.06175739,0.00013698,2]
[334771802,1723542643746,-500.0,0.00013698,2]
[334771804,1723542643758,-221.82352259,0.00013698,2]
[334771806,1723542643768,-500.0,0.00013698,2]
[334771808,1723542643778,-262.96385452,0.00013698,2]
[334771810,1723542643787,-500.0,0.00013698,2]
[334771812,1723542643797,-500.0,0.00013698,2]
[334771814,1723542643806,-500.0,0.00013698,2]
[334771816,1723542643816,-500.0,0.00013698,2]
[334771818,1723542643826,-500.0,0.00013698,2]
[334771820,1723542643836,-500.0,0.00013698,2]
[334771823,1723542643848,-500.0,0.00013698,2]
[334771825,1723542643857,-507.05239135,0.00013698,2]
[334771827,1723542643867,-500.0,0.00013698,2]
[334771829,1723542643878,-500.0,0.00013698,2]
[334771831,1723542643890,-450.0,0.00013698,2]
[334771833,1723542643900,-500.0,0.00013698,2]
[334771835,1723542643911,-477.6651164,0.00013698,2]
[334771837,1723542643921,-500.0,0.00013698,2]
[334771839,1723542643933,-500.0,0.00013698,2]
[334771841,1723542643944,-504.47854233,0.00013698,2]
[334771844,1723542643956,-500.0,0.00013698,2]
[334771846,1723542643967,-510.88917413,0.00013698,2]
[334771848,1723542643978,-1413.8,0.00013698,2]
[334771850,1723542643989,-500.80143685,0.00013698,2]
[334771852,1723542643998,-500.0,0.00013698,2]
[334771854,1723542644009,-503.71558281,0.00013698,2]
[334771857,1723542644020,-561.2518857,0.00013698,2]
[334771859,1723542644031,-506.55540525,0.00013698,2]
[334771861,1723542644043,-500.0,0.00013698,2]
[334771863,1723542644059,-590.39,0.00013698,2]
[334771865,1723542644069,-500.0,0.00013698,2]
[334771867,1723542644078,-500.0,0.00013698,2]
[334771869,1723542644087,-500.0,0.00013698,2]
[334771871,1723542644097,-1526.47,0.00013698,2]
[334771873,1723542644106,-500.0,0.00013698,2]
[334771875,1723542644115,-300.0,0.00013698,2]
[334771877,1723542644124,-507.5474858,0.00013698,2]
[334771879,1723542644135,-500.0,0.00013698,2]
[334771881,1723542644144,-150.36652279,0.00013698,2]
[334771883,1723542644154,-500.0,0.00013698,2]
[334771886,1723542644165,-500.0,0.00013698,2]
[334771888,1723542644174,-503.78290479,0.00013698,2]
[334771890,1723542644187,-501.41158025,0.00013698,2]
[334771892,1723542644197,-500.0,0.00013698,2]
[334771894,1723542644208,-500.0,0.00013698,2]
[334771896,1723542644219,-500.0,0.00013698,2]
[334771899,1723542644229,-500.0,0.00013698,2]
[334771901,1723542644240,-500.0,0.00013698,2]
[334771903,1723542644250,-507.13052992,0.00013698,2]
[334771905,1723542644261,-500.0,0.00013698,2]
[334771907,1723542644271,-504.52624612,0.00013698,2]
[334771909,1723542644280,-1372.68,0.00013698,2]
[334771911,1723542644291,-507.8846365,0.00013698,2]
[334771913,1723542644305,-500.0,0.00013698,2]
[334771915,1723542644315,-502.93585482,0.00013698,2]
[334771918,1723542644326,-500.0,0.00013698,2]
[334771920,1723542644336,-632.68876494,0.00013698,2]
[334771922,1723542644347,-505.80045931,0.00013698,2]
[334771924,1723542644357,-6494.97,0.00013698,2]
[334771926,1723542644367,-500.0,0.00013698,2]
[334771928,1723542644378,-507.86272351,0.00013698,2]
[334771930,1723542644388,-502.07385119,0.00013698,2]
[334771946,1723542644399,-503.26821161,0.00013698,2]
[334771948,1723542644540,-508.02086793,0.00013698,2]
[334771950,1723542644552,-500.0,0.00013698,2]
[334771952,1723542644562,-507.20011329,0.00013698,2]
[334771954,1723542644572,-387.24154549,0.00013698,2]
[334771956,1723542644581,-2155.75,0.00013698,2]
[334771958,1723542644592,-500.0,0.00013698,2]
[334771960,1723542644602,-1161.36,0.00013698,2]
[334771961,1723542644613,-505.71208401,0.00013698,2]
[334771963,1723542644624,-500.0,0.00013698,2]
[334771965,1723542644633,-917.58,0.00013698,2]
[334771967,1723542644643,-500.0,0.00013698,2]
[334771969,1723542644656,-507.72251785,0.00013698,2]
[334771971,1723542644666,-505.36064693,0.00013698,2]
[334771973,1723542644677,-913.41,0.00013698,2]
[334771975,1723542644687,-1086.69,0.00013698,2]
[334771976,1723542644698,-1635.73,0.00013698,2]
[334771977,1723542644708,-500.0,0.00013698,2]
[334771978,1723542644718,-511.83291939,0.00013698,2]
[334771979,1723542644728,-507.60818199,0.00013698,2]
[334771980,1723542644738,-500.0,0.00013698,2]
[334771981,1723542644749,-506.3500057,0.00013698,2]
[334771982,1723542644759,-503.86,0.00013698,2]
[334771983,1723542644768,-504.4672631,0.00013698,2]
[334771984,1723542644778,-500.0,0.00013698,2]
[334771985,1723542644787,-500.0,0.00013698,2]
[334771986,1723542644798,-5008.86,0.00013698,2]
[334771987,1723542644808,-500.0,0.00013698,2]
[334771988,1723542644817,-500.0,0.00013698,2]
[334771989,1723542644826,-503.73544608,0.00013698,2]
[334771991,1723542644835,-500.0,0.00013698,2]
[334771993,1723542644845,-508.42683788,0.00013698,2]
[334771994,1723542644855,-500.0,0.00013698,2]
[334771996,1723542644865,-500.0,0.00013698,2]
[334771998,1723542644875,-607.19,0.00013698,2]
[334772000,1723542644890,-1164.34,0.00013698,2]
[334772001,1723542644900,-952.61,0.00013698,2]
[334772003,1723542644910,-500.0,0.00013698,2]
[334772005,1723542644922,-677.97,0.00013698,2]
[334772007,1723542644932,-500.0,0.00013698,2]
[334772009,1723542644942,-515.05521888,0.00013698,2]
[334772010,1723542644951,-500.0,0.00013698,2]
[334772011,1723542644963,-500.0,0.00013698,2]
[334772012,1723542644974,-2120.03,0.00013698,2]
[334772013,1723542644985,-500.0,0.00013698,2]
[334772014,1723542644995,-1401.17,0.00013698,2]
[334772015,1723542645005,-503.56683525,0.00013698,2]
[334772016,1723542645014,-503.56450761,0.00013698,2]
[334772017,1723542645024,-502.28690449,0.00013698,2]
[334772018,1723542645035,-500.0,0.00013698,2]
[334772019,1723542645046,-500.0,0.00013698,2]
[334772020,1723542645058,-500.0,0.00013698,2]
[334772021,1723542645069,-500.0,0.00013698,2]
[334772022,1723542645078,-564.66,0.00013698,2]
[334772023,1723542645088,-500.0,0.00013698,2]
[334772024,1723542645098,-278.20551426,0.00013698,2]
[334772025,1723542645107,-813.68,0.00013698,2]
[334772026,1723542645117,-509.39277566,0.00013698,2]
[334772027,1723542645127,-500.0,0.00013698,2]
[334772028,1723542645136,-500.0,0.00013698,2]
[334772029,1723542645146,-500.0,0.00013698,2]
[334772030,1723542645156,-500.0,0.00013698,2]
[334772031,1723542645166,-500.0,0.00013698,2]
[334772032,1723542645175,-3756.54,0.00013698,2]
[334772033,1723542645185,-500.0,0.00013698,2]
[334772034,1723542645195,-1324.14,0.00013698,2]
[334772035,1723542645205,-500.0,0.00013698,2]
[334772036,1723542645214,-1785.62,0.00013698,2]
[334772037,1723542645225,-500.0,0.00013698,2]
[334772038,1723542645234,-761.79,0.00013698,2]
[334772039,1723542645244,-687.85,0.00013698,2]
[334772040,1723542645254,-500.0,0.00013698,2]